Cogmind - Beta 16.1 @@@ ROGUE MODE // 2026.04.15 @ 00:36:03 Player: skelll Result: Destroyed by H-61 Shepherd with Heavy Assault Cannon Performance ------------- Evolutions (2) 1000 Regions Visited (5) 1000 Robots Destroyed (48) 240 Value Destroyed (1180) 1180 Prototype IDs (29) 580 Alien Tech Used (0) 0 Bonus (438) 438 TOTAL SCORE: 4438 Bonus ------- Follower Combat Kills 138 Aligned with FarCom 300 Cogmind --------- Core Integrity 0/550 Matter 290/300 Energy 39/100 System Corruption 1% Temperature Cool (2) Movement Core (400) Ox7 Location -8/Materials Parts ------- > --- POWER (1) -------- (None) > --- PROPULSION (3) --- (None) > --- UTILITY (4) ------ Large Storage Unit Modified TNC > --- WEAPON (3) ------- Medium Laser Medium Laser > --- INVENTORY (15) --- Light Deuterium Engine Flight Unit Flight Unit Flight Unit High-capacity Storage Unit Weight Redist. System Experimental Sensor Array Melee Analysis Suite Particle Charger Improved Power Shielding Datajack Blade Trap Blade Trap Peak State ------------ > --- POWER ------------ Light Deuterium Engine > --- PROPULSION ------- Compact Wheel > --- UTILITY ---------- Large Storage Unit Compact Matter Pod Experimental Sensor Array Modified TNC > --- WEAPON ----------- Heavy EM Shotgun Beam Cannon Beam Cannon > --- INVENTORY -------- Light Deuterium Engine Improved Heat Sink High-capacity Storage Unit Melee Analysis Suite Particle Charger Medium Laser Medium Laser Datajack Blade Trap Blade Trap [Rating: 30] Favorites ----------- Power Ion Engine Engine Ion Engine Power Core Light Nuclear Core Propulsion Light Treads Treads Light Treads Wheel Wheel Hover Unit Improved Hover Unit Flight Unit Flight Unit Utility Large Storage Unit Device Improved Heat Sink Storage Large Storage Unit Processor Modified TNC Weapon Beam Cannon Energy Gun Medium Laser Energy Cannon Beam Cannon Ballistic Gun Light Assault Rifle Launcher Grenade Launcher Impact Weapon Hammer Special Melee Weapon Datajack Build | -11 -10 -10 -10 -9 -8 ------- Run | Yrd Mat Min Exi Min Mat Slots Evolved 4 | . . . . . 4 Power . | . . . . . . Propulsion 1 | . . . . . 1 Utility 2 | . . . . . 2 Weapon 1 | . . . . . 1 Parts Attached 49 | 6 7 5 1 2 28 Power 7 | 1 . 1 . 1 4 Engine 6 | 1 . 1 . . 4 Core 1 | . . . . 1 . Reactor . | . . . . . . Propulsion 14 | 2 2 2 . . 8 Treads 5 | . . 2 . . 3 Leg . | . . . . . . Wheel 3 | 2 . . . . 1 Hover 1 | . . . . . 1 Flight 5 | . 2 . . . 3 Utility 11 | 1 4 . 1 . 5 Device 3 | . 1 . . . 2 Storage 6 | 1 3 . 1 . 1 Processor 2 | . . . . . 2 Hackware . | . . . . . . Protection . | . . . . . . Artifact . | . . . . . . Weapon 17 | 2 1 2 . 1 11 Energy Gun 5 | . . . . . 5 Energy Cannon 5 | . . 1 . . 4 Ballistic Gun 4 | 2 1 . . . 1 Ballistic Cannon . | . . . . . . Launcher 1 | . . . . 1 . Special Weapon . | . . . . . . Impact Weapon 1 | . . 1 . . . Slashing Weapon . | . . . . . . Piercing Weapon . | . . . . . . Special Melee Weapon 1 | . . . . . 1 Unidentified Prototypes 1 | . . . . . 1 Corrupted Parts 1 | . . . . . 1 System Corruption 1 | . . . . . 1 Parts Lost 33 | . . 5 . . 28 Power 6 | . . 1 . . 5 Propulsion 11 | . . 2 . . 9 Utility 3 | . . . . . 3 Weapon 13 | . . 2 . . 11 Highest Loss Streak 7 | . . 3 . . 7 To Critical Strikes . | . . . . . . Average Backups 9 | 2 6 9 9 11 9 Power 1 | . 1 1 1 1 . Propulsion 1 | 1 3 2 2 2 . Utility 2 | . . . 1 3 4 Weapon 3 | . 1 3 4 4 2 Tool/Special . | . . . . . . Unused Backups 6 | 1 . . . . 5 Power 1 | . . . . . 1 Propulsion 1 | 1 . . . . . Utility 4 | . . . . . 4 Weapon . | . . . . . . Tool/Special . | . . . . . . Average Slot Usage (%) 92 | . 98 93 100 100 79 Engine 8 | . 14 14 14 7 4 Core 3 | . . . . 6 2 Treads 16 | . . 19 28 28 5 Wheel 3 | . 27 6 . . 1 Flight 2 | . . . . . 6 Storage 24 | . 23 28 28 28 18 Processor 4 | . . . . . 13 Energy Gun 2 | . . . . . 8 Energy Cannon 10 | . . 7 14 14 9 Ballistic Gun 4 | . 28 7 . . 3 Launcher 2 | . . . . 6 . Impact Weapon 5 | . . 10 14 7 1 Peak Build Rating 30 | 6 8 8 8 11 30 Average Rating 12 | 4 7 6 7 9 21 On Entrance 6 | . 6 8 7 8 11 Avg Prop Armor Cover (%) 4 | . . . . . 4 Naked Turns . | . . . . . . Heaviest Build 54 | 11 29 34 54 35 37 Greatest Support 40 | 20 20 40 40 40 40 Greatest Overweight (x) 11 | . 3 3 1 . 11 Average Overweight (x) . | . . . . . 1 Largest Inventory Capacity 20 | 8 15 15 20 15 15 Average Capacity 14 | 7 9 15 15 15 15 Most Carried 15 | 4 11 11 11 15 15 Average Carried 11 | 2 7 8 9 14 11 Final Capacity 20 | 8 15 15 20 15 15 Final Carried 15 | 4 11 9 11 15 13 Class Distribution -------------------- 82% | Mutant 17% | Skirmisher Dominant Class ---------------- Mutant | -10/Materials Mutant | -10/Mines Mutant | -10/Exiles Mutant | -9/Mines Skirmisher | -8/Materials Resources | -11 -10 -10 -10 -9 -8 ----------- Run | Yrd Mat Min Exi Min Mat Matter Collected 1058 | 200 265 201 . 90 302 Remotely . | . . . . . . Salvage Created 1736 | . 205 123 . 45 1363 Parts 83 | . 19 6 . 9 49 Haulers Intercepted 2 | . . . . . 2 Recyclers Shooed 1 | . . . . . 1 Parts Field Recycled . | . . . . . . Retrieved Matter . | . . . . . . Parts Self-Destructed . | . . . . . . Prevented . | . . . . . . Parts Restored . | . . . . . . Kills | -11 -10 -10 -10 -9 -8 ------- Run | Yrd Mat Min Exi Min Mat Combat Hostiles Destroyed 36 | . 7 5 . 3 21 Melee 3 | . . 1 . . 2 Guns 18 | . 7 3 . . 8 Cannons 8 | . . . . 1 7 AOE 4 | . . . . 2 2 Classes Destroyed 9 | . 2 . . . 7 Worker 3 | . . . . . 3 Builder 1 | . . . . . 1 Hauler 2 | . . . . . 2 Recycler 3 | . . . . . 3 Watcher 3 | . . . . . 3 Swarmer 16 | . 3 3 . 2 8 Grunt 15 | . 4 2 . 1 8 Sentry 4 | . . . . . 4 Hunter 1 | . . . . . 1 Best Kill Streak 7 | . 3 3 . 2 7 Combat Bots Only 5 | . 3 3 . 2 5 Max Kills in Single Turn 2 | . 1 2 . 2 1 Gunslinging . | . . . . . . Exploded 1 | . . . . 1 1 Melee 1 | . . 1 . . 1 Uniques/NPCs Destroyed . | . . . . . . Combat | -11 -10 -10 -10 -9 -8 -------- Run | Yrd Mat Min Exi Min Mat Hostile Shots Fired 296 | . 41 34 . 16 205 Missed 63 | . 8 5 . 5 45 Hits 233 | . 33 29 . 11 160 Projectile 233 | . 33 29 . 11 160 Critical Strikes 8 | . 1 . . . 7 Damage Taken 3606 | . 348 340 . 145 2773 Core 759 | . 108 89 . 10 552 Absorbed by Shields . | . . . . . . Core Remaining (%) 58 | 100 . . . 17 . Volleys Fired 123 | . 22 10 . 6 85 Largest 3 | . 2 2 . 2 3 Hottest 173 | . 40 40 . 90 173 Shots Fired 258 | . 44 18 . 11 185 Gun 167 | . 44 18 . . 105 Cannon 85 | . . . . 6 79 Launcher 6 | . . . . 5 1 Special . | . . . . . . Kinetic 89 | . 44 18 . . 27 Thermal 137 | . . . . 6 131 Explosive 6 | . . . . 5 1 Electromagnetic 26 | . . . . . 26 Robot Hit Streak 30 | . 6 3 . 4 30 Robot Miss Streak 5 | . 5 3 . 2 4 Penetration Max . | . . . . . . Secondary Targets 1 | . 1 . . . . Max Gunslinging Chain 1 | . 1 . . . . Shots Hit Robots 204 | . 26 19 . 5 154 Core Hits 81 | . 12 9 . 7 53 Critical Kills 2 | . . . . . 2 Critical Parts Destroyed 1 | . . . . . 1 Critical Strikes 5 | . . . . . 5 Burn 2 | . . . . . 2 Meltdown 1 | . . . . . 1 Smash 2 | . . . . . 2 Melee Attacks 38 | . . 13 . . 25 Impact 33 | . . 13 . . 20 Slashing . | . . . . . . Piercing . | . . . . . . Sneak Attacks 7 | . . . . . 7 Combat Hostiles . | . . . . . . Follow-up Attacks . | . . . . . . Damage Inflicted 3371 | . 247 337 . 327 2460 Guns 1434 | . 232 110 . . 1092 Cannons 889 | . . . . 52 837 Explosions 344 | . . . . 275 69 Melee 689 | . . 227 . . 462 Ramming 15 | . 15 . . . . Kinetic 519 | . 232 110 . . 177 Thermal 1475 | . . . . 52 1423 Explosive 312 | . . . . 275 37 Electromagnetic 361 | . . . . . 361 Impact 689 | . . 227 . . 462 Slashing . | . . . . . . Piercing . | . . . . . . Highest Corruption 1 | . . . . . 1 Average Corruption 1 | . . . . . 1 Corruption Purged . | . . . . . . Corruption Blocked . | . . . . . . Effects 1 | . . . . . 1 Data Loss (minor) 1 | . . . . . 1 Overload Shots . | . . . . . . Overflow Damage 116 | . . 13 . . 103 Projectiles 31 | . . . . . 31 Explosions 14 | . . . . . 14 Melee 71 | . . 13 . . 58 Knockbacks 2 | . . . . . 2 Impact 1 | . . . . . 1 Kinetic . | . . . . . . Secondary 1 | . . . . . 1 Self-Inflicted Damage 95 | . 7 . . 17 71 Shots 3 | . . . . 1 2 Rammed 1 | . 1 . . . . Targets Rammed 1 | . 1 . . . . Kicked . | . . . . . . Crushed . | . . . . . . Highest Temperature 490 | . 28 18 . 89 490 Average Temperature 99 | . 10 11 . 38 115 Received Heat Transfer 1221 | . 138 150 . 42 891 Effects 5 | . . . . . 5 Shutdowns 1 | . . . . . 1 Energy Bleed 1 | . . . . . 1 Interference 3 | . . . . . 3 Siege Activations . | . . . . . . Martial Activations . | . . . . . . Shielding Activations . | . . . . . . Robots Disrupted . | . . . . . . Combat Hostiles . | . . . . . . Robots Corrupted 4 | . . 1 . . 3 Combat Hostiles 3 | . . 1 . . 2 Parts Fried 6 | . . 2 . . 4 Impact Corruptions 7 | . . 2 . . 5 Robots Melted 1 | . . . . . 1 Combat Hostiles . | . . . . . . Parts Melted 6 | . . . . . 6 Heat Transferred 3626 | . . . . 111 3515 Parts Sabotaged . | . . . . . . Parts Stolen . | . . . . . . Parts Stripped . | . . . . . . Power Chain Reactions 1 | . . . . . 1 Alert | -11 -10 -10 -10 -9 -8 ------- Run | Yrd Mat Min Exi Min Mat Maximum Alert Level 1 | . . . . . 1 Low Security (%) 96 | 100 100 100 . 100 90 Level 1 3 | . . . . . 9 Level 2 . | . . . . . . Level 3 . | . . . . . . Level 4 . | . . . . . . Level 5 . | . . . . . . High Security . | . . . . . . Max Security . | . . . . . . Peak Influence 257 | . 100 70 . 179 257 Initial 31 | . . 8 . . 31 Average 44 | . 37 7 . 52 55 Influence Increases 1294 | . 177 120 . 297 700 Destroy 0b10 Robot/C 880 | . 140 100 . 180 460 Destroy 0b10 Robot/NC 60 | . . . . . 60 Destroy Leader 180 | . 20 20 . 20 120 Allied During Kill 20 | . . . . 17 3 Trap Triggered on 0b10 10 | . . . . . 10 Successful Hack 21 | . 17 . . . 4 Disable Machine 75 | . . . . 45 30 Destroy Structure 48 | . . . . 35 13 Influence Decreases 1101 | . 154 143 . 217 587 Entered New Map 64 | . . 15 . . 49 Time Decay 800 | . 154 98 . 197 351 Lost Part 186 | . . 30 . . 156 Lost Ally 40 | . . . . 20 20 Purge Threat 11 | . . . . . 11 Squads Dispatched 9 | . 1 . . . 8 Investigation 1 | . 1 . . . . Extermination . | . . . . . . Reinforcement 4 | . . . . . 4 Assault . | . . . . . . Garrison 4 | . . . . . 4 Intercept . | . . . . . . Searches Triggered . | . . . . . . Construction Impeded . | . . . . . . Haulers Reinforced . | . . . . . . Active Scanning Responses . | . . . . . . Cargo Convoy Interrupts . | . . . . . . Stealth | -11 -10 -10 -10 -9 -8 --------- Run | Yrd Mat Min Exi Min Mat Distress Signals 3 | . 1 . . . 2 Communications Jammed . | . . . . . . Distress Signals . | . . . . . . Times Spotted 67 | . 14 5 . 9 39 Peak Tracking Total 5 | . 4 3 . 4 5 Tactical Retreats 1 | . 1 . . . . ECM-based Alert Blocks 1 | . 1 . . . . Traps | -11 -10 -10 -10 -9 -8 ------- Run | Yrd Mat Min Exi Min Mat Traps Triggered 1 | . . . . . 1 Indirectly . | . . . . . . Trap Hack Attempts . | . . . . . . Triggered . | . . . . . . Disarmed . | . . . . . . Reprogrammed 1 | . . . . . 1 Reused 1 | . . . . . 1 Traps Extracted . | . . . . . . Installed 1 | . . . . . 1 Triggered 1 | . . . . . 1 Most Traps Carried 4 | . . . . 4 3 Machines | -11 -10 -10 -10 -9 -8 ---------- Run | Yrd Mat Min Exi Min Mat Machines Disabled 5 | . . . . 3 2 Max in Single Turn 1 | . . . . 1 1 Machines Repaired . | . . . . . . Machines Dismantled . | . . . . . . Machines Sabotaged . | . . . . . . Overloaded Fab Kills . | . . . . . . Hacking | -11 -10 -10 -10 -9 -8 --------- Run | Yrd Mat Min Exi Min Mat Machines Accessed 12 | . 6 . 1 . 5 Terminals 9 | . 6 . . . 3 Fabricators . | . . . . . . Repair Stations . | . . . . . . Recycling Units . | . . . . . . Scanalyzers 2 | . . . . . 2 Garrison Access . | . . . . . . Total Hacks 25 | . 12 . 1 . 12 Successful 13 | . 5 . 1 . 7 Failed 12 | . 7 . . . 5 Catastrophic 6 | . 5 . . . 1 Database Lockouts . | . . . . . . Manual 1 | . . . 1 . . Terminals 19 | . 12 . . . 7 Fabricators . | . . . . . . Repair Stations . | . . . . . . Recycling Units . | . . . . . . Scanalyzers 5 | . . . . . 5 Garrison Access . | . . . . . . Terminal Hacks 9 | . 5 . 1 . 3 Robot Analysis 1 | . 1 . . . . Prototype ID Bank 2 | . 2 . . . . Branch Access Points 1 | . 1 . . . . Unreport Threat 1 | . . . . . 1 Reprogram Traps 1 | . . . . . 1 Dispatch Records 1 | . . . . . 1 Hauler Manifests 1 | . 1 . . . . Proto ID Catalog 1 | . . . 1 . . Fabricator Hacks . | . . . . . . Repair Station Hacks . | . . . . . . Recycling Unit Hacks . | . . . . . . Scanalyzer 4 | . . . . . 4 Insert Component 2 | . . . . . 2 Analyze 2 | . . . . . 2 Garrison Access Hacks . | . . . . . . Unauthorized Hacks . | . . . . . . Terminals . | . . . . . . Fabricators . | . . . . . . Repair Stations . | . . . . . . Recycling Units . | . . . . . . Scanalyzers . | . . . . . . Garrison Access . | . . . . . . Data Cores Recovered . | . . . . . . Used . | . . . . . . Hacking Detections 8 | . 5 . . . 3 Full Trace Events 1 | . 1 . . . . Feedback Events . | . . . . . . Feedback Blocked . | . . . . . . Robot Schematics Acquired . | . . . . . . Robots Built . | . . . . . . Authchips . | . . . . . . Time . | . . . . . . Total Robot Build Rating . | . . . . . . Part Schematics Acquired 1 | . . . . . 1 Parts Built . | . . . . . . Authchips . | . . . . . . Time . | . . . . . . Total Part Build Rating . | . . . . . . Part Studies Acquired . | . . . . . . Parts Repaired . | . . . . . . Time . | . . . . . . Parts Recycled . | . . . . . . Recycled Matter . | . . . . . . Retrieved Matter . | . . . . . . Retrieved Components . | . . . . . . Parts Scanalyzed 2 | . . . . . 2 Part Schematics Acquired 1 | . . . . . 1 Parts Damaged . | . . . . . . Bothacking | -11 -10 -10 -10 -9 -8 ------------ Run | Yrd Mat Min Exi Min Mat Used RIF Installer . | . . . . . . Robots Hacked 2 | . . . . . 2 Non-combat 2 | . . . . . 2 Combat . | . . . . . . Robot Hacks Applied 2 | . . . . . 2 no_distress 2 | . . . . . 2 Relay Couplers Released . | . . . . . . Fabnet Peak Effective % . | . . . . . . Robots Rewired . | . . . . . . Allies Hacked . | . . . . . . Hacks Repelled . | . . . . . . Allies | -11 -10 -10 -10 -9 -8 -------- Run | Yrd Mat Min Exi Min Mat Total Allies 2 | . . . . 2 . Largest Group 2 | . . . . 2 1 Highest-Rated Group 47 | . . . . 47 31 Highest-Rated Ally 31 | . . . . 31 31 Total Orders . | . . . . . . Ally Attacks 23 | . . . . 19 4 Total Damage 355 | . . . . 292 63 Kills 8 | . . . . 6 2 Allies Corrupted . | . . . . . . Allies Melted . | . . . . . . Intel | -11 -10 -10 -10 -9 -8 ------- Run | Yrd Mat Min Exi Min Mat Active Infowar (turns) 1831 | . 112 . . . 1719 Sensors 9 | . . . . . 9 T.N.C. 1719 | . . . . . 1719 ECM 112 | . 112 . . . . Robot Analysis Total 1 | . 1 . . . . Derelict Logs Recovered 3 | . . 2 . 1 . Drone Launches . | . . . . . . Drone Recoveries . | . . . . . . Exploration | -11 -10 -10 -10 -9 -8 ------------- Run | Yrd Mat Min Exi Min Mat Turns Passed 5211 | 54 456 768 414 1766 1753 Spaces Moved 2796 | 49 389 464 243 1006 645 Core 17 | 1 . . . . 16 Treads 1828 | . . 320 243 1006 259 Legs . | . . . . . . Wheels 758 | 48 384 144 . . 182 Hover 62 | . . . . . 62 Flight 131 | . 5 . . . 126 Fastest Speed 50 | 50 80 95 160 160 115 Average Speed 155 | 79 82 142 170 160 203 Slowest Speed 600 | 80 285 160 240 160 600 Overloaded Moves . | . . . . . . Propulsion Burnouts . | . . . . . . Robots Hopped . | . . . . . . Potential Cave-ins . | . . . . . . Cave-ins Triggered . | . . . . . . Exploration Rate (%) 65 | 3 81 99 59 96 53 Regions Visited 5 Branch Regions 3 Pre-discovered Areas 2 | . . . . 2 . Known Exits Taken 1 | . 1 . . . . Unknown Exits Taken 4 | 1 . 1 1 1 . Scrap Searched 4 | . . 2 . 2 . Spaces Dug . | . . . . . . Terrain Destroyed 50 | . . . . 39 11 Melee . | . . . . . . Projectile . | . . . . . . AOE 50 | . . . . 39 11 Terrain Rammed . | . . . . . . Walls Destroyed . | . . . . . . Machines Disabled . | . . . . . . Actions | -11 -10 -10 -10 -9 -8 --------- Run | Yrd Mat Min Exi Min Mat Total 3364 | 61 484 535 244 1152 888 Wait 300 | 1 52 42 . 131 74 Move 2791 | 48 388 463 242 1005 645 Hop . | . . . . . . Pick Up 38 | 5 8 2 1 5 17 Fast Attach 16 | 6 . 1 . . 9 Attach 28 | . 1 4 . . 23 Detach 5 | . . . . . 5 Swap 15 | . 9 . 1 3 2 Drop 8 | 1 3 . . 2 2 Fire 123 | . 22 10 . 6 85 Melee 38 | . . 13 . . 25 Ram 1 | . 1 . . . . Kick . | . . . . . . Crush . | . . . . . . Escape Stasis . | . . . . . . Rewire . | . . . . . . Trap 1 | . . . . . 1 Miscellaneous . | . . . . . . Route ------- -11/Scrapyard -10/Materials (discovered 3 exits: [*Mat x2] / *Min) -10/Mines (discovered 3 exits: [*Mat x2] / *Exi) -10/Exiles -9/Mines (discovered 2 exits: *Mat x2) -8/Materials (discovered 2 exits: *Fac x2) History --------- Turn | Location | Event 14 | -11/Scrapyard | Discovered new exit (range 16) 55 | -11/Scrapyard | Entered Materials 192 | -10/Materials | Discovered new exit (range 15) 224 | -10/Materials | Discovered new exit (range 13) 312 | -10/Materials | Build established: Mutant 393 | -10/Materials | Discovered new exit (range 15) 448 | -10/Materials | Identified exit to Mines 511 | -10/Materials | Entered Mines 517 | -10/Mines | Met a Derelict bent on vengeance 621 | -10/Mines | Core integrity fell below 50% 663 | -10/Mines | Learned Materials emergency access door positions 678 | -10/Mines | Discovered new exit (range 14) 758 | -10/Mines | Lost 3 parts (1n2w) 980 | -10/Mines | Discovered new exit (range 9) 1112 | -10/Mines | Learned 8 Materials zone layouts 1272 | -10/Mines | Deemed a non-threat by the Exiles lab entrance 1272 | -10/Mines | Discovered new exit (range 5) 1279 | -10/Mines | Entered Exiles 1316 | -10/Exiles | Met 8R-AWN 1345 | -10/Exiles | Met EX-HEX 1390 | -10/Exiles | Met EX-BIN 1414 | -10/Exiles | Aligned with FarCom system 1415 | -10/Exiles | Given EX-Vault access code 1452 | -10/Exiles | Opened EX-Vault 1476 | -10/Exiles | Found Modified TNC 1509 | -10/Exiles | Warned to stay clear of 0b10 Research branches 1518 | -10/Exiles | Exiles lab attacked by MAIN.C 1674 | -10/Exiles | Discovered new exit (range 10) 1693 | -10/Exiles | Left Exiles lab with Modified TNC 1693 | -10/Exiles | Entered Mines 1785 | -9/Mines | Found a hidden stash of uninstalled traps 1846 | -9/Mines | Discovered new exit (range 13) 2115 | -9/Mines | Learned location of Recycling (-9) 2555 | -9/Mines | Found a damaged Exp. Sensor Array with a note attached 2559 | -9/Mines | Found Prototype Device 2596 | -9/Mines | Core integrity fell below 20% 2824 | -9/Mines | Discovered new exit (range 8) 2967 | -9/Mines | Learned location of Storage (-9) 3459 | -9/Mines | Entered Materials 3459 | -8/Materials | Accompanied by 1 ally 3459 | -8/Materials | Evolved 4 slots: Propulsion x1, Utility x2, Weapon x1 3460 | -8/Materials | Identified exit to Factory 3464 | -8/Materials | Led the pair of lost Derelicts to an unsafe place 3655 | -8/Materials | Lost 3 parts (2n1w) 3836 | -8/Materials | Build established: Skirmisher 3876 | -8/Materials | Identified Exp. Sensor Array 4246 | -8/Materials | Lost 4 parts (2n2w) 4417 | -8/Materials | Lost 4 parts (1p2n1w) 4667 | -8/Materials | Build established: Mutant 4694 | -8/Materials | Garrison activated, responded to threat 4736 | -8/Materials | Core integrity fell below 50% 4740 | -8/Materials | Lost 5 parts (1p1n1u2w) 4781 | -8/Materials | Lost 3 parts (1p1n1w) 5179 | -8/Materials | Garrison activated, responded to threat 5202 | -8/Materials | Core integrity fell below 20% 5212 | -8/Materials | Destroyed by H-61 Shepherd with Heavy Assault Cannon Last Messages --------------- 1x Garrison 05195_ U-05 Engineer lays Concrete. 05195_ ALERT: Suspicious intruders detected, dispatching Specialist reinforcements to area. [Achievement: Heavy Suspicion] 05196_ U-05 Engineer builds a Wall. 05197_ U-05 Engineer lays Concrete. 05203_ H-61 Shepherd calls for reinforcements. 05203_ ALERT: Hostile activity reported, dispatching reinforcements to area. 05203_ Beam Cannon destroyed. 05203_ Com. Wheel destroyed. 05205_ Imp. Heat Sink destroyed. 05207_ Beam Cannon destroyed. 05207_ Knocked back. 05208_ Acquired 4 matter. 05209_ Penetrated by Slug. 05209_ Com. Matter Pod destroyed. 05209_ Critical hit (Blast). 05210_ K-01 Serf cleans the Repair Station. Map ----- +----------------------------------------------------+ | | | | | ????????????????????????????????????????????? | | ????????????????????????????????????????????? | | ????????????????????????????????????????????? | | ????????????????????????????????????????????? | | ????????????????????????????????????????????? | | ????????????????????????????????????????????? | | ????????????????????????????????????????????? | | ????????????????????????????????????????????? | | ????????????????????????????????????????????? | | ????????????????????????????????????????????? | | ????????????????????????????????????????????? | | ????????????????????????????????????????????? | | ????????????????????????????????????????????? | | ???????????????????????????????????g????????? | | ????????????????????????????????????????????? | | ???????????????????????????????????g????????? | | ??????????????####??????????????????????????? | | ?????????????##!!!?????????????????g????????? | | ?????????????#! ??????????????????#??????? | | ?????????????# #######???????? ##?????? | | ##########+### # ####### #?????? | | ! % x #?????? | | ####### T H #?????? | | ??????????k %@ x #?????? | | ???????????" ##; %####### #?????? | | ????????????????? ?####+#####???????????????? | | ????????????????? ?# ! ^ #???????????????? | | ????????????????? ?# T #???????????????? | | ????????????????? ?# #???????????????? | | ????????????????? ?# #???????????????? | | ????????????????# ## #???????????????? | | ????????????????# ## """ #???????????????? | | ????????????????# ## """ #???????????????? | | ????????????????# ## ! """ #???????????????? | | ??????????????###g## #???????????????? | | ??????????????# #""##############?????????? | | ??????????????# #! # %[[ #?????????? | | ??????????????#g [/% # % % #?????????? | | ??????????????# =# # """%%%" #?????????? | | ??????????????# " # """"""" #???####### | | ??????????????# ####### """"""" #???# ! # | | ??????????????# ####### """"""" ##### # | | ############### # # """"""" # + !| # | | #"" # # # !| # | | #### ###### #"Y ! ######+#### # |! # | | #### #????# #"" # # # | | / #????# # + + # | | # ###### + # # # | +----------------------------------------------------+ Best States ------------- Heat Dissipation 45 Energy Generation 18 Energy Capacity 250 Matter Stores 553 Matter Capacity 650 Sight Range 16 Robot Scan Range 20 Terrain Scan Density 10 ECM Strength 1 Evasion (%) 44 Targeting Accuracy 5 Recoil Reduction 2 Item Schematics ----------------- Hcp. Storage Unit | -8/Materials | Scanalyzed Robot Schematics ------------------ None Fabricated ------------ Nothing Repaired ---------- Nothing Studied --------- None Alien Tech Used ----------------- None Achievements -------------- A Problem For Future Me Heavy Suspicion Challenges ------------ None Game ------ Seed AerolevAuthchipRipteeth Manual? 0 Play Time 00:52:48 Cumulative 21.5 hours Start 2026.04.14 @ 22:38:19 End 2026.04.15 @ 00:36:03 Sessions 3 Manual Loads 0 Difficulty Rogue Special Mode None Game No. 36 Rogue 36 Adventurer 0 Explorer 0 Win Type - Total 0 Types 0/0/0/0/0/0/0/0/0/0 Lore% 15 Gallery% 15 Achievement% 13 Wizard Run 0 Options --------- Layout 1 ASCII 0 Keyboard 1 Movement Arrows Keybinds 0 Fullscreen 2 Font 24/Terminus Map View 50x35 Zoom Use 0% Tactical HUD 1 Map Filters NONE Filters NONE Steam 1 RUN: ce6f896b-2360-4b70-af78-20e2b3b3d86d